{"text_format":"1","workbook":"xlsx","n_sheets":13,"sheets":["1. Forside","2. Samlet prisloft","3. Driftsomkostninger","4. Historiske investeringer","5. Gennemførte investeringer","6. Korrektion investeringer","7. Planlagte investeringer","8. 1-1 omkostninger","9. Miljø- og servicemål","10. Klimatilpasning","11. Nettofinansielle poster","12. Over- eller underdækning","13. Kontrol med indtægtsrammen"],"not_rendered":{"charts":0,"images":0,"macros":1,"external_links":0,"defined_names":0,"comments":0,"pivot_tables":0},"unopened":[],"bounds":{"document_bytes":16777216,"sheet_cells":100000,"rows_first":2000,"rows_last":500,"rows_between":2000,"halvings":0,"cell_chars":16384,"cell_head_chars":4096},"cells_cut":0,"cells_raw":0,"read":"whole","date_system":"1900"}

{"sheet":"1. Forside","index":0,"n_rows":27,"n_cols":4,"rows_kept":27,"cut":false,"hidden":false,"merged":[[21,3,21,5],[20,3,20,5],[19,3,19,5],[18,3,18,5],[7,3,7,5],[12,3,12,5],[15,3,15,5],[16,3,16,5],[17,3,17,5],[26,3,26,5],[25,3,25,5],[24,3,24,5],[23,3,23,5],[22,3,22,5]]}
["Sønderborg Spildevandsforsyning A/S"]
[]
[]
[]
[]
[]
[]
[null,null,null,"Bilag A"]
[]
[]
[]
[]
[null,null,null,"Indholdsfortegnelse"]
[]
[]
[null,null,"Fane nr. 2","Samlet prisloft "]
[null,null,"Fane nr. 3","Driftsomkostninger"]
[null,null,"Fane nr. 4","Historiske investeringer "]
[null,null,"Fane nr. 5","Gennemførte investeringer"]
[null,null,"Fane nr. 6","Korrektion investeringer"]
[null,null,"Fane nr. 7","Planlagte investeringer"]
[null,null,"Fane nr. 8","1:1 omkostninger"]
[null,null,"Fane nr. 9","Miljø- og servicemål"]
[null,null,"Fane nr. 10","Klimatilpasning"]
[null,null,"Fane nr. 11","Nettofinansielle poster"]
[null,null,"Fane nr. 12","Over- eller underdækning"]
[null,null,"Fane nr. 13","Kontrol med indtægtsrammen og oversigt over ekstraordinære effektiviseringsgevinster"]

{"sheet":"2. Samlet prisloft","index":1,"n_rows":39,"n_cols":6,"rows_kept":39,"cut":false,"hidden":false,"merged":[[3,1,3,5]]}
[{"$f":"'1. Forside'!A1","v":"Sønderborg Spildevandsforsyning A/S"}]
[]
[]
[null,"Fane 2. Samlet prisloft for 2015"]
[]
[null,"Driftsomkostninger"]
[null,"Korrigerede driftsomkostninger i prisloftet for 2014",{"$f":"'3. Driftsomkostninger'!C24","v":53930454.158990428},"kr."]
[null,"Bortfald af væsentlige omkostninger",{"$f":"-'3. Driftsomkostninger'!C29","v":0},"kr."]
[null,"Korrektion for periodevise driftsomkostninger",{"$f":"'3. Driftsomkostninger'!C35","v":-123530.45999999996},"kr."]
[null,"Korrektion for prisudviklingen 2014-2015",{"$f":"'3. Driftsomkostninger'!C41","v":43045.538959192345},"kr."]
[null,"Forhøjelse til effektivt niveau iht. benchmarkingen",{"$f":"'3. Driftsomkostninger'!C47","v":0},"kr."]
[null,"Korrektion for generelt effektiviseringskrav",{"$f":"-'3. Driftsomkostninger'!C53","v":-236750.4642755579},"kr."]
[null,"Korrektion for individuelt effektiviseringskrav",{"$f":"-'3. Driftsomkostninger'!C62","v":-2690346.1849495214},"kr."]
[null,"Driftsomkostninger i alt",{"$f":"SUM(C7:C13)","v":50922872.588724531},"kr.",{"$f":"C14","v":50922872.588724531}," kr."]
[null,"Investeringer"]
[null,"Tillæg for historiske investeringer",{"$f":"'4. Historiske investeringer'!C9","v":81308435.539985254},"kr."]
[null,"Tillæg for gennemførte investeringer i 2011-2013",{"$f":"'5. Gennemførte investeringer'!F23","v":7383132.9299999997},"kr."]
[null,"Korrektion af tillæg for planlagte investeringer vedrørende 2013  ",{"$f":"'6. Korrektion investeringer'!C10","v":176277.38666666672},"kr."]
[null,"Tillæg for planlagte investeringer i 2014 og 2015",{"$f":"'7. Planlagte investeringer'!F20","v":4867140.8866666667},"kr."]
[null,"Investeringstillæg i alt",{"$f":"SUM(C16:C19)","v":93734986.743318588},"kr.",{"$f":"C20","v":93734986.743318588}," kr."]
[null,"Øvrige omkostninger mv."]
[null,"Tillæg for 1:1 omkostninger i 2015",{"$f":"'8. 1-1 omkostninger'!C13","v":7587029},"kr."]
[null,"Tillæg vedr. revisorerklæringer og DANVA/FVD-kontingent",{"$f":"'8. 1-1 omkostninger'!C19","v":129748},"kr."]
[null,"Korrektion ift. faktiske 1:1 omkostninger i 2013",{"$f":"'8. 1-1 omkostninger'!C25","v":1628394},"kr."]
[null,"Tillæg for driftsomkostninger til miljø- og servicemål i 2015",{"$f":"'9. Miljø- og servicemål'!C8","v":0},"kr."]
[null,"Korrektion ift. faktiske driftsomkostninger til miljø- og servicemål i 2013",{"$f":"'9. Miljø- og servicemål'!C14","v":0},"kr."]
[null,"Tillæg for driftsomkostninger til medfinansiering af klimatilpasningsprojekter i 2015",{"$f":"'10. Klimatilpasning'!C9","v":0},"kr."]
[null,"Korrektion ift. faktiske omkostninger til medfinansiering af klimatilpasningsprojekter i 2013",{"$f":"'10. Klimatilpasning'!C15","v":0},"kr."]
[null,"Tillæg/fradrag for nettofinansielle poster i 2015",{"$f":"'11. Nettofinansielle poster'!C9","v":772406},"kr."]
[null,"Korrektion ift. faktiske nettofinansielle poster i 2013",{"$f":"'11. Nettofinansielle poster'!C15","v":176280},"kr."]
[null,"Øvrige omkostninger mv. i alt",{"$f":"SUM(C22:C30)","v":10293857},"kr.",{"$f":"C31","v":10293857}," kr."]
[null,"Historisk over- eller underdækning"]
[null,"Tillæg/fradrag for over- eller underdækning til og med 2010",{"$f":"'12. Over- eller underdækning'!C11","v":2035827.1243386243},"kr.",{"$f":"C33","v":2035827.1243386243}," kr."]
[null,"Korrektion i forhold til tidligere indtægtsramme "]
[null,"Korrektion for overholdelse af indtægtsramme i prisloft 2013",{"$f":"'13. Kontrol med indtægtsrammen'!E27","v":26540061.698429018},"kr.",{"$f":"C35","v":26540061.698429018}," kr."]
[null,"Samlet prisloft"]
[null,"Indtægtsramme i 2015 ",null,null,{"$f":"SUM(E14:E35)","v":183527605.15481076}," kr."]
[null,"Debiteret vandmængde i 2013",null,null,3302618," m3"]
[null,"Prisloft 2015",null,null,{"$f":"E37/E38","v":55.570340001420313}," kr./m3"]

{"sheet":"3. Driftsomkostninger","index":2,"n_rows":62,"n_cols":4,"rows_kept":62,"cut":false,"hidden":false,"merged":[[3,1,3,3],[6,3,8,3],[6,2,8,2]]}
[{"$f":"'1. Forside'!A1","v":"Sønderborg Spildevandsforsyning A/S"}]
[]
[]
[null,"Fane 3. Driftsomkostninger "]
[]
[null,"Driftsomkostningerne i prisloftet for 2014"]
[null,"Korrigerede driftsomkostninger i prisloftet for 2013 (DOiPL 2013)",62284852.366414219,"kr."]
[null,"       inkl. tillæg iht. § 8, stk. 2, pkt. 1 på 804.852  kr."]
[null,"       samt midlertidigt tillæg iht. § 8, stk. 5 på 6.204.976 kr."]
[null,"Prisfremskrivning 1,5 pct.",{"$f":"0.015*SUM(C7)","v":934272.78549621324},"kr."]
[null,"Generelt effektiviseringskrav (0 pct.)",0,"kr."]
[null,"Korrektion af periodevise driftsomkostninger iht. § 8, stk. 2",-312980,"kr."]
[null,"Individuelt effektiviseringskrav ",-2803994,"kr."]
[null,"Bortfald af midlertidigt tillæg inkl. prisfremskrivning, § 8, stk. 5",{"$f":"-6204976*1.015","v":-6298050.6399999997},"kr."]
[null,"Driftsomkostningerne i prisloftet for 2014 ",{"$f":"SUM(C7:C14)-C9","v":53804100.511910431},"kr."]
[null,"Udtræk af korrektion af periodevise driftsomkostninger",312980,"kr."]
[null,"Driftsomkostningerne i prisloftet for 2014 (DOiPL 2014)",{"$f":"C15+C16","v":54117080.511910431},"kr."]
[]
[]
[null,"Forskel i § 8, stk. 2, pkt. 1 - tillæg"]
[null,"Godkendt tillæg i PL2014 prisfremskrevet til 2014-niveau",816924.77999999991,"kr."]
[null,"Godkendt tillæg i PL2015 prisfremskrevet til 2014-niveau",630298.42708000005,"kr."]
[null,"Forskel",{"$f":"C22-C21","v":-186626.35291999986},"kr."]
[null,"Korrigerede driftsomkostninger i prisloftet for 2014",{"$f":"C17+C23","v":53930454.158990428},"kr."]
[]
[]
[null,"Korrektion for forventet bortfald af væsentlige omkostninger"]
[null,"Selskabets indberettede bortfald af væsentlige omkostninger inden 2015",0,"kr."]
[null,"Korrektion for forventet bortfald ",{"$f":"SUM(C28:C28)","v":0},"kr."]
[]
[]
[null,"Korrektion for periodevise driftsomkostninger"]
[null,"Del af godkendt tillæg i PL2013 vedrørende omkostninger i 2013",764315,"kr."]
[null,"Faktisk udgift til periodevise driftsomkostninger i 2013",640784.54,"kr."]
[null,"Korrektion for periodevise driftsomkostninger",{"$f":"C34-C33","v":-123530.45999999996},"kr."]
[]
[]
[null,"Korrektion for prisudviklingen fra 2014-2015"]
[null,"Driftsomkostningerne i prisloftet for 2014",{"$f":"C24-C29+C35","v":53806923.698990427},"kr."]
[null,"Prisudvikling 2014 - 2015 ",0.08,"pct."]
[null,"Korrektion for prisudvikling",{"$f":"C39*(C40/100)","v":43045.538959192345},"kr."]
[]
[]
[null,"Eventuel forhøjelse til effektivt niveau iht. benchmarkingen"]
[null,"Selskabets effektive driftsomkostninger iht. benchmarkingen",35528711.413026065,"kr."]
[null,"Selskabets pristalskorrigerede driftsomkostninger i 2015-niveau",{"$f":"C39+C41","v":53849969.237949617},"kr."]
[null,"Eventuel forhøjelse til effektivt niveau",{"$f":"IF(C46>C45,0,C45-C46)","v":0},"kr."]
[]
[]
[null,"Korrektion for generelt effektiviseringskrav"]
[null,"Driftsomkostningerne i prisloftet for 2014",{"$f":"C39","v":53806923.698990427},"kr. "]
[null,"Generelt effektiviseringskrav ",0.44,"pct."]
[null,"Endeligt generelt effektiviseringskrav",{"$f":"C51*(C52/100)","v":236750.4642755579},"kr. "]
[]
[]
[null,"Korrektion for individuelt effektiviseringskrav"]
[null,"Rå effektiviseringspotentiale",18278211.823421106,"kr."]
[null,"Effektiviseringspotentiale efter eventuel korrektion for særlige forhold",18278211.823421106,"kr."]
[null,"Effektiviseringspotentiale efter forsigtighedshensyn",11477016.726334181,"kr."]
[null,"Effektiviseringspotentiale efter eventuel korrektion for sammensætning af signifikante costdrivere",11477016.726334181,"kr. "]
[null,"Umiddelbart effektiviseringskrav",{"$f":"C60/4","v":2869254.1815835452},"kr."]
[null,"Endeligt individuelt effektiviseringskrav",{"$f":"IF(C61>0.05*C39,0.05*C39,IF(C61<0.01*C39,0,C61))","v":2690346.1849495214},"kr. "]

{"sheet":"4. Historiske investeringer","index":3,"n_rows":9,"n_cols":4,"rows_kept":9,"cut":false,"hidden":false,"merged":[[3,1,3,2]]}
[{"$f":"'3. Driftsomkostninger'!A1","v":"Sønderborg Spildevandsforsyning A/S"}]
[]
[]
[null,"Fane 4. Historiske investeringer "]
[]
[null,"Tillæg for historiske investeringer "]
[null,"Værdi af selskabets materielle anlægsaktiver pr. 1. januar 2010",3506048026.7429581,"kr."]
[null,"Den årlige standardafskrivning på de materielle anlægsaktiver iht. POLKA",81308435.539985254,"kr."]
[null,"Tillæg i alt i 2015",{"$f":"C8","v":81308435.539985254},"kr."]

{"sheet":"5. Gennemførte investeringer","index":4,"n_rows":23,"n_cols":7,"rows_kept":23,"cut":false,"hidden":false,"merged":[[3,1,3,5],[6,5,6,6]]}
[{"$f":"'4. Historiske investeringer'!A1","v":"Sønderborg Spildevandsforsyning A/S"}]
[]
[]
[null,"Fane 5. Gennemførte investeringer i 2010 - 2013 "]
[]
[null,"Tillæg for gennemførte investeringer i 2013"]
[null," Beskrivelse af investeringen   ","Årstal ","Std. levetid (år)   "," Anskaffelses-pris (kr.)","Afskrivning "]
[null,"Ø 200 mm < Ledningsnet = Ø 500 mm",2013,75,2183891,{"$f":"E8/D8","v":29118.546666666665},"kr."]
[null,"Pumpestationer i brønde (< 6,25 m2), Mek/EL",2013,20,2105976,105298.8,"kr."]
[null,"Pumpestationer i brønde (< 6,25 m2), SRO",2013,10,1043161,104316.1,"kr."]
[null,"Ø 200 mm < Ledningsnet = Ø 500 mm",2013,75,86257456,1150099.4133333333,"kr."]
[null,"Strømpeforing Ø 200 mm < Ledningsnet = Ø 500 mm",2013,50,2774245,55484.9,"kr."]
[null,"Tryksatte minipumpestationer (husstandssystemer)",2013,30,349699,11656.633333333333,"kr."]
[null,"Pumpestationer i brønde (< 6,25 m2), Mek/EL",2013,20,3296276,164813.79999999999,"kr."]
[null,"Pumpestationer i brønde (< 6,25 m2), SRO",2013,10,835184,83518.399999999994,"kr."]
[null,"Køretøjer, entreprenørmaskiner",2013,5,81000,16200,"kr."]
[null,"Køretøjer, små lastvogne (< 3.500 kg.)",2013,5,232446,46489.2,"kr."]
[null,"Køretøjer, store lastvogne (> 3.500 kg.)",2013,5,695995,139199,"kr."]
[null,"Køretøjer, store lastvogne (> 3.500 kg.)",2013,5,934286,186857.2,"kr."]
[null,"Køretøjer, store lastvogne (> 3.500 kg.)",2013,5,2160936,432187.2,"kr."]
[null,"Tillæg for 2013 ",null,null,null,{"$f":"SUM(F8:F20)","v":2525239.1933333334},"kr."]
[null,"Tillæg for 2010 - 2012",null,null,null,4857893.7366666663,"kr."]
[null,"Samlet tillæg for gennemførte investeringer",null,null,null,{"$f":"F21+F22","v":7383132.9299999997},"kr."]

{"sheet":"6. Korrektion investeringer","index":5,"n_rows":10,"n_cols":4,"rows_kept":10,"cut":false,"hidden":false,"merged":[[3,1,3,3]]}
[{"$f":"'5. Gennemførte investeringer'!A1","v":"Sønderborg Spildevandsforsyning A/S"}]
[]
[]
[null,"Fane 6. Korrektion af tillæg for planlagte investeringer"]
[]
[null,"Korrektion af tillæg for planlagte investeringer vedr. 2013"]
[null,"Tillæg for planlagte investeringer i 2013 i prisloft 2013",2189007,"kr."]
[null,"Tillæg for planlagte investeringer i 2013 i prisloft 2014",2685194,"kr."]
[null,"Selskabets faktiske afskrivninger på gennemførte investeringer i 2013",{"$f":"'5. Gennemførte investeringer'!F21","v":2525239.1933333334},"kr."]
[null,"Korrektion af tillæg for planlagte investeringer vedr. 2013",{"$f":"C9-C7+C9-C8","v":176277.38666666672},"kr."]

{"sheet":"7. Planlagte investeringer","index":6,"n_rows":20,"n_cols":7,"rows_kept":20,"cut":false,"hidden":false,"merged":[[6,5,6,6],[3,1,3,6]]}
[{"$f":"'6. Korrektion investeringer'!A1","v":"Sønderborg Spildevandsforsyning A/S"}]
[]
[]
[null,"Fane 7. Planlagte investeringer "]
[]
[null,"Tillæg for planlagte investeringer i 2014 og 2015"]
[null,"Beskrivelse af investeringen   ","Årstal ","Std. levetid (år)   ","Anskaffelses-pris (kr.)   ","Afskrivning"]
[null,"Ø 200 mm < Ledningsnet = Ø 500 mm",2014,75,75000000,{"$f":"E8/D8","v":1000000},"kr."]
[null,"Jordbassin Klasse B",2014,50,9000000,{"$f":"E9/D9","v":180000},"kr."]
[null,"Pumpestationer i brønde (< 6,25 m2), Konstruktioner",2014,50,6905000,138100,"kr."]
[null,"Køretøjer, små lastvogne (< 3.500 kg.)",2014,5,1315000,263000,"kr."]
[null,"Mindre renseanlæg < 5.000 PE uden mulighed for opdeling",2014,40,18830000,470750,"kr."]
[null,"Ø 200 mm < Ledningsnet = Ø 500 mm",2015,75,75200000,1002666.6666666666,"kr."]
[null,"Jordbassin Klasse B",2015,50,15000000,300000,"kr."]
[null,"Pumpestationer i brønde (< 6,25 m2), Konstruktioner",2015,50,11781896,235637.92,"kr."]
[null,"Køretøjer, små lastvogne (< 3.500 kg.)",2015,5,2243764,448752.8,"kr."]
[null,"Mindre renseanlæg < 5.000 PE uden mulighed for opdeling",2015,40,33129340,828233.5,"kr."]
[null,"Tillæg for 2014",null,null,null,{"$f":"SUMIF(C8:C17,\"2014\",F8:F17)","v":2051850},"kr."]
[null,"Tillæg for 2015",null,null,null,{"$f":"SUMIF(C8:C17,\"2015\",F8:F17)","v":2815290.8866666667},"kr."]
[null,"Tillæg i alt",null,null,null,{"$f":"F18+F19","v":4867140.8866666667},"kr."]

{"sheet":"8. 1-1 omkostninger","index":7,"n_rows":25,"n_cols":4,"rows_kept":25,"cut":false,"hidden":false,"merged":[[3,1,3,3],[15,1,15,3],[21,1,21,3]]}
[{"$f":"'7. Planlagte investeringer'!A1","v":"Sønderborg Spildevandsforsyning A/S"}]
[]
[]
[null,"Fane 8. 1:1 omkostninger"]
[]
[null,"Tillæg for budgetterede 1:1 omkostninger i 2015"]
[null,"Betaling til Forsyningssekretariatet",32490,"kr."]
[null,"Spildevandsafgift",1894069,"kr."]
[null,"Køb af varer og tjenesteydelser hos et andet prisloftreguleret vandselskab",367117,"kr."]
[null,"Selskabsskat",5000000,"kr."]
[null,"Tjenestemandspensioner",34882,"kr."]
[null,"Ejendomsskatter",258471,"kr."]
[null,"Tillæg i alt ",{"$f":"SUM(C7:C12)","v":7587029},"kr."]
[]
[]
[null,"Tillæg for budgetterede nødvendige udgifter til revisorerklæringer samt ordinært medlemskab af DANVA og FVD i 2015"]
[null,"Betaling for ordinært medlemskab af DANVA/FVD",112800,"kr."]
[null,"Betaling for revisorerklæringer",16948,"kr."]
[null,"Tillæg i alt ",{"$f":"SUM(C17:C18)","v":129748},"kr."]
[]
[]
[null,"Korrektion af tillæg for faktiske 1:1 omkostninger (inkl. revisorerklæringer og ordinært medlemskab af DANVA/FVD) i 2013"]
[null,"Selskabets faktiske 1:1 omkostninger mv. i 2013, jf. reguleringsregnskabet",3900485,"kr."]
[null,"Tillæg for budgetterede 1:1 omkostninger mv. i prisloft 2013",2272091,"kr."]
[null,"Korrektion af tillæg for budgetterede 1:1 omkostninger mv. i 2013",{"$f":"C23-C24","v":1628394},"kr."]

{"sheet":"9. Miljø- og servicemål","index":8,"n_rows":14,"n_cols":4,"rows_kept":14,"cut":false,"hidden":false,"merged":[[3,1,3,3]]}
[{"$f":"'8. 1-1 omkostninger'!A1","v":"Sønderborg Spildevandsforsyning A/S"}]
[]
[]
[null,"Fane 9. Driftsomkostninger til miljø- og servicemål "]
[]
[null,"Tillæg for budgetterede driftsomkostninger til miljø- og servicemål i 2015"]
[null,null,0,"kr."]
[null,"Tillæg i alt",{"$f":"SUM(C7:C7)","v":0},"kr."]
[]
[]
[null,"Korrektion af tillæg for faktiske driftsomkostninger til miljø- og servicemål i 2013"]
[null,"Selskabets faktiske driftsomkostninger til miljø- og servicemål i 2013, jf. reguleringsregnskabet",0,"kr."]
[null,"Tillæg for budgetterede driftsomkostninger til miljø- og servicemål i prisloft 2013",0,"kr."]
[null,"Korrektion af tillæg for budgetterede driftsomkostninger til miljø- og servicemål i 2013",{"$f":"C12-C13","v":0},"kr."]

{"sheet":"10. Klimatilpasning","index":9,"n_rows":15,"n_cols":4,"rows_kept":15,"cut":false,"hidden":false,"merged":[[3,1,3,3],[11,1,11,3],[6,1,6,3]]}
[{"$f":"'9. Miljø- og servicemål'!A1","v":"Sønderborg Spildevandsforsyning A/S"}]
[]
[]
[null,"Fane 10. Medfinansiering af klimatilpasningsprojekter"]
[]
[]
[null,"Tillæg for budgetterede omkostninger til medfinansiering af klimatilpasningsprojekter i 2015"]
[null,null,0,"kr."]
[null,"Tillæg i alt",{"$f":" SUM(C8:C8)","v":0},"kr."]
[]
[]
[null,"Korrektion af tillæg for faktiske omkostninger til medfinansiering af klimatilpasningsprojekter i 2013"]
[null,"Selskabets faktiske driftsomkostninger til klimatilpasningsprojekter i 2013, jf. reguleringsregnskabet",0,"kr."]
[null,"Tillæg for budgetterede driftsomkostninger til klimatilpasningsprojekter i prisloft 2013",0,"kr."]
[null,"Korrektion af tillæg for budgetterede omkostninger til klimatilpasningsprojekter i 2013",{"$f":"C13-C14","v":0},"kr."]

{"sheet":"11. Nettofinansielle poster","index":10,"n_rows":15,"n_cols":4,"rows_kept":15,"cut":false,"hidden":false,"merged":[[3,1,3,3]]}
[{"$f":"'10. Klimatilpasning'!A1","v":"Sønderborg Spildevandsforsyning A/S"}]
[]
[]
[null,"Fane 11. Nettofinansielle poster"]
[]
[null,"Tillæg for budgetterede nettofinansielle poster i 2015"]
[null,"Budgetterede renteudgifter og gebyrer i 2015",1132406,"kr."]
[null,"Budgetterede renteindtægter i 2015",360000,"kr."]
[null,"Tillæg/fradrag i alt",{"$f":"C7-C8","v":772406},"kr."]
[]
[]
[null,"Korrektion af tillæg for faktiske nettofinansielle poster i 2013"]
[null,"Selskabets faktiske nettofinansielle poster i 2013, jf. reguleringsregnskabet",171280,"kr."]
[null,"Tillæg for budgetterede nettofinansielle poster i prisloft 2013",-5000,"kr."]
[null,"Korrektion af tillæg for budgetterede nettofinansielle poster i 2013",{"$f":"C13-C14","v":176280},"kr."]

{"sheet":"12. Over- eller underdækning","index":11,"n_rows":11,"n_cols":4,"rows_kept":11,"cut":false,"hidden":false,"merged":[[3,1,3,3]]}
[{"$f":"'11. Nettofinansielle poster'!A1","v":"Sønderborg Spildevandsforsyning A/S"}]
[]
[]
[null,"Fane 12. Over- eller underdækning til og med 2010"]
[]
[null,"Tillæg/fradrag for over- eller underdækning til og med 2010"]
[null,"Opgjort over- eller underdækning per 31. december 2010",14631808,"kr."]
[null,"Heraf beløb indregnet i prislofterne for 2011 - 2014",2416845.2539682537,"kr."]
[null,"Endnu ikke indregnet over- eller underdækning",{"$f":"C7-C8","v":12214962.746031746},"kr."]
[null,"Resterende indregningsperiode (fastsat i prisloftet for 2012)",6,"år"]
[null,"Tillæg/fradrag i alt",{"$f":"IF(C7=0,0,C9/C10)","v":2035827.1243386243},"kr."]

{"sheet":"13. Kontrol med indtægtsrammen","index":12,"n_rows":38,"n_cols":12,"rows_kept":38,"cut":false,"hidden":false,"merged":[[3,1,3,5],[30,1,30,4],[5,1,5,5]]}
[{"$f":"'12. Over- eller underdækning'!A1","v":"Sønderborg Spildevandsforsyning A/S"}]
[]
[]
[null,"Fane 13. Korrektion for overholdelse af indtægtsrammen i prisloftet for 2013"]
[]
[null,"Samlet opgørelse vedrørende overholdelse af indtægtsrammen i prisloftet for 2013"]
[null,"Indtægtsramme i prisloftet for 2013",null,null,166016000.45213822,"kr."]
[null,"Ikke anvendt likviditet vedrørende investeringer i 2013"]
[null,"Tillæg for historiske investeringer ",81777372.21370919,"kr."]
[null,"Tillæg for gennemførte investeringer i 2011",5702589,"kr."]
[null,"Korrektion af tillæg for planlagte investeringer i 2011",1601779,"kr."]
[null,"Tillæg for planlagte investeringer i 2012 og 2013",3921968,"kr."]
[null,"Indtægter fra tilslutningsbidrag",9152448,"kr."]
[null,"Indtægter fra salg af anlægsaktiver",192165,"kr."]
[null,"Erstatninger vedr. anlægsaktiver mv.",0,"kr."]
[null,"Ekstraordinær effektiviseringsgevinst anvendt til investeringer",12709280.539999999,"kr."]
[null,"Udgifter til investeringer",-99006186,"kr."]
[null,"Ikke anvendt likviditet vedr. investeringer i alt",{"$f":"SUM(C9:C17)","v":16051415.753709197},"kr.",{"$f":"IF(C18<0,0,-C18)","v":-16051415.753709197},"kr."]
[null,"Ekstraordinære effektiviseringsgevinster anvendt til takstnedsættelse"]
[null,"Ekstraordinær effektiviseringsgevinst anvendt til takstnedsættelse",0,"kr.",{"$f":"-C20","v":0},"kr."]
[null,"Korrektion af ikke opkrævet tillæg fra 2011 i prisloft 2013"]
[null,"Korrektion af ikke opkrævet tillæg fra 2011 i prisloft 2013",0,"kr.",{"$f":"-C22","v":0},"kr."]
[null,"Indtægter fra primære aktiviteter mv."]
[null,"Indtægter fra kubikmetertakster, faste takster, særbidrag, målergebyrer samt andre takster og gebyrer",123424523,"kr."]
[null,"Andre indtægter i prisloftåret, som selskabet har opnået i forbindelse med eller som følge af selskabets primære aktiviteter",0,"kr."]
[null,"Indtægter fra primære aktiviteter mv. i alt",{"$f":"SUM(C24:C25)","v":123424523},"kr.",{"$f":"-C26","v":-123424523},"kr."]
[null,"Tillæg/fradrag i prisloftet for 2015 i alt",null,null,{"$f":"E7+E18+E20+E22+E26","v":26540061.698429018},"kr."]
[]
[]
[]
[null,"Oversigt over ekstraordinære effektiviseringsgevinster"]
[]
[null,null,2012,null,2013,null,2014,null,2015,null,2016]
[null,"Indhentet ekstraordinær effektiviseringsgevinst",3005143,"kr.",9704137.5399999991,"kr.",null,"kr.",null,"kr.",null,"kr."]
[null,"Gevinst anvendt til investeringer",0,"kr.",{"$f":"C38+E34","v":12709280.539999999},"kr.",null,"kr.",null,"kr.",null,"kr."]
[null,"Gevinst anvendt til takstnedsættelse",0,"kr.",0,"kr.",null,"kr.",null,"kr.",null,"kr."]
[null,"Korrektion for  effektiviseringsgevinst der ikke er anvendt inden 4 år",0,"kr.",0,"kr.",null,"kr.",null,"kr.",{"$f":"IF(C38>SUM(E35:I36),C38-SUM(E35:I36),0)*-1","v":0},"kr."]
[null,"Resterende gevinst",{"$f":"C34-C35-C36","v":3005143},"kr.",{"$f":"C38+E34-E35-E36","v":0},"kr.",{"$f":"E38+G34-G35-G36","v":0},"kr.",{"$f":"G38+I34-I35-I36","v":0},"kr.",{"$f":"K34-K35-K36+K37+I38","v":0},"kr."]